fUST/lending_fUST_20260611
["ID","MTS","AMOUNT","RATE_DAILY","PERIOD"]
[424803033,1781173844000,-500.0,0.00035616,18]
[424803031,1781173844000,-500.0,0.00035616,18]
[424803037,1781173844000,-500.0,0.00035616,18]
[424803029,1781173844000,-500.0,0.00035616,18]
[424803022,1781173844000,-500.0,0.00035616,18]
[424803026,1781173844000,-500.0,0.00035616,18]
[424803020,1781173844000,-500.0,0.00035616,18]
[424803024,1781173844000,-518.29,0.00035616,18]
[424803042,1781173844000,-500.0,0.00035616,18]
[424803027,1781173844000,-500.0,0.00035616,18]
[424803040,1781173844000,-500.0,0.00035616,18]
[424803056,1781173844000,-500.0,0.00035616,18]
[424803044,1781173844000,-500.0,0.00035616,18]
[424803052,1781173844000,-500.0,0.00035616,14]
[424803060,1781173844000,-500.0,0.00035616,18]
[424803048,1781173844000,-500.0,0.00035616,18]
[424803053,1781173844000,-500.0,0.00035616,18]
[424803055,1781173844000,-500.0,0.00035616,18]
[424803050,1781173844000,-500.0,0.00035616,18]
[424803062,1781173844000,-500.0,0.00035616,18]
[424803018,1781173844000,-500.0,0.00035616,18]
[424803058,1781173844000,-500.0,0.00035616,18]
[424803066,1781173844000,-500.0,0.00035616,18]
[424803067,1781173844000,-500.0,0.00035616,18]
[424803069,1781173844000,-500.0,0.00035616,18]
[424803064,1781173844000,-500.0,0.00035616,18]
[424803046,1781173844000,-500.0,0.00035616,18]
[424803016,1781173844000,-500.0,0.00035616,18]
[424802996,1781173844000,-500.0,0.00035616,18]
[424802998,1781173844000,-500.0,0.00035616,18]
[424802964,1781173844000,-500.0,0.00035616,18]
[424802966,1781173844000,-500.0,0.00035616,18]
[424802962,1781173844000,-500.0,0.00035616,18]
[424802961,1781173844000,-500.0,0.00035616,18]
[424802974,1781173844000,-500.0,0.00035616,18]
[424802972,1781173844000,-500.0,0.00035616,18]
[424802970,1781173844000,-500.0,0.00035616,18]
[424802977,1781173844000,-500.0,0.00035616,18]
[424803081,1781173844000,-500.0,0.00035616,18]
[424802975,1781173844000,-500.0,0.00035616,18]
[424802979,1781173844000,-500.0,0.00035616,18]
[424802968,1781173844000,-500.0,0.00035616,18]
[424802981,1781173844000,-500.0,0.00035616,18]
[424803000,1781173844000,-500.0,0.00035616,18]
[424802983,1781173844000,-500.0,0.00035616,18]
[424802987,1781173844000,-500.0,0.00035616,18]
[424802989,1781173844000,-1000.0,0.00035616,2]
[424802991,1781173844000,-500.0,0.00035616,18]
[424802992,1781173844000,-500.0,0.00035616,18]
[424802994,1781173844000,-500.0,0.00035616,18]
[424803014,1781173844000,-500.0,0.00035616,18]
[424803012,1781173844000,-500.0,0.00035616,18]
[424803009,1781173844000,-500.0,0.00035616,18]
[424803005,1781173844000,-500.0,0.00035616,18]
[424803007,1781173844000,-500.0,0.00035616,18]
[424803003,1781173844000,-701.43,0.00035616,18]
[424803011,1781173844000,-500.0,0.00035616,18]
[424803001,1781173844000,-500.0,0.00035616,18]
[424802985,1781173844000,-500.0,0.00035616,18]
[424803077,1781173844000,-500.0,0.00035616,18]
[424803154,1781173844000,-1770.52,0.00035616,18]
[424803071,1781173844000,-500.0,0.00035616,18]
[424803136,1781173844000,-500.0,0.00035616,18]
[424803142,1781173844000,-413.49795307,0.00035616,18]
[424803137,1781173844000,-500.0,0.00035616,18]
[424803138,1781173844000,-500.0,0.00035616,18]
[424803140,1781173844000,-1000.0,0.00035616,2]
[424803143,1781173844000,-500.0,0.00035616,18]
[424803141,1781173844000,-86.50204693,0.00035616,18]
[424803145,1781173844000,-1061.19,0.00035616,2]
[424803139,1781173844000,-500.0,0.00035616,18]
[424803144,1781173844000,-500.0,0.00035616,18]
[424803147,1781173844000,-500.0,0.00035616,18]
[424803155,1781173844000,-500.0,0.00035616,18]
[424803149,1781173844000,-493.46818289,0.00035616,18]
[424803135,1781173844000,-937.11,0.00035616,18]
[424803156,1781173844000,-500.0,0.00035616,18]
[424803148,1781173844000,-430.54158255,0.00035616,18]
[424803152,1781173844000,-1557.3245,0.00035616,18]
[424803157,1781173844000,-533.49,0.00035616,18]
[424803153,1781173844000,-500.0,0.00035616,18]
[424803158,1781173844000,-500.0,0.00035616,18]
[424803151,1781173844000,-500.0,0.00035616,18]
[424803150,1781173844000,-500.0,0.00035616,18]
[424803160,1781173844000,-500.0,0.00035616,18]
[424803162,1781173844000,-500.0,0.00035616,18]
[424803164,1781173844000,-500.0,0.00035616,18]
[424803166,1781173844000,-500.0,0.00035616,18]
[424803168,1781173844000,-500.0,0.00035616,18]
[424803170,1781173844000,-170.66646375,0.00035616,18]
[424803146,1781173844000,-500.0,0.00035616,18]
[424803123,1781173844000,-500.0,0.00035616,18]
[424803073,1781173844000,-500.0,0.00035616,18]
[424803130,1781173844000,-500.0,0.00035616,18]
[424803126,1781173844000,-500.0,0.00035616,18]
[424803086,1781173844000,-370.62848,0.00035616,18]
[424803075,1781173844000,-500.0,0.00035616,18]
[424803079,1781173844000,-500.0,0.00035616,18]
[424803084,1781173844000,-500.0,0.00035616,18]
[424803083,1781173844000,-500.0,0.00035616,18]
[424803099,1781173844000,-500.0,0.00035616,18]
[424803103,1781173844000,-978.44,0.00035616,18]
[424803108,1781173844000,-425.6221625,0.00035616,18]
[424803101,1781173844000,-500.0,0.00035616,18]
[424803088,1781173844000,-500.0,0.00035616,18]
[424803107,1781173844000,-568.49,0.00035616,18]
[424803105,1781173844000,-500.0,0.00035616,18]
[424803092,1781173844000,-500.0,0.00035616,10]
[424803090,1781173844000,-500.0,0.00035616,18]
[424803134,1781173844000,-500.0,0.00035616,18]
[424803094,1781173844000,-500.0,0.00035616,18]
[424803096,1781173844000,-500.0,0.00035616,18]
[424803110,1781173844000,-500.0,0.00035616,18]
[424803117,1781173844000,-500.0,0.00035616,18]
[424803112,1781173844000,-500.0,0.00035616,18]
[424803114,1781173844000,-500.0,0.00035616,18]
[424803132,1781173844000,-500.0,0.00035616,18]
[424803097,1781173844000,-757.3,0.00035616,18]
[424803116,1781173844000,-500.0,0.00035616,18]
[424803128,1781173844000,-500.0,0.00035616,18]
[424803119,1781173844000,-500.0,0.00035616,18]
[424803121,1781173844000,-500.0,0.00035616,18]
[424803124,1781173844000,-500.0,0.00035616,18]
[424803171,1781173845000,-500.0,0.00035616,18]
[424803173,1781173845000,-691.9,0.00035616,18]
[424803177,1781173845000,-416.66274981,0.00035616,18]
[424803175,1781173845000,-500.0,0.00035616,18]
[424803183,1781173845000,-277.35353118,0.00035616,18]
[424803184,1781173845000,-142.64646882,0.00035616,18]
[424803181,1781173845000,-222.64646882,0.00035616,18]
[424803179,1781173845000,-83.33725019,0.00035616,18]
[424803340,1781173846000,-3880.41973116,0.00033739,2]
[424805281,1781173990000,151.0,0.00021521,120]
[424805282,1781174028000,177.0,0.00021521,120]
[424805283,1781174029000,177.0,0.00022521,120]
[424805284,1781174030000,178.0,0.00023521,120]
[424805285,1781174038000,5000.0,0.00024658,30]
[424805286,1781174046000,517.58157963,0.00024658,30]
[424805288,1781174243000,152.0,0.00021618,120]
[424805289,1781174245000,152.0,0.00022618,120]
[424805315,1781175032000,-170.26145585,0.000206,2]
[424805318,1781175032000,-1663.9880865,0.000208,2]
[424805317,1781175032000,-170.26145585,0.000208,2]
[424805321,1781175032000,-301.06229707,0.00020999,2]
[424805320,1781175032000,-500.0,0.00020999,2]
[424805325,1781175032000,-190.94215777,0.00021096,2]
[424805326,1781175032000,-245.73320442,0.00021198,2]
[424805310,1781175032000,-490.14,0.00019726,2]
[424805316,1781175032000,-1663.9880865,0.000206,2]
[424805311,1781175032000,-490.14,0.0002,2]
[424805305,1781175032000,-52.30581692,0.00018062,2]
[424805307,1781175032000,-490.14,0.00018904,2]
[424805308,1781175032000,-490.14,0.00019178,2]
[424805306,1781175032000,-490.14,0.0001863,2]
[424805303,1781175032000,-3814.0,0.00016849,2]
[424805314,1781175032000,-160.0,0.0002059,2]
[424805312,1781175032000,-490.14,0.00020274,2]
[424805304,1781175032000,-107.69418308,0.00018062,2]
[424805302,1781175032000,-4566.54188993,0.00016681,2]
[424805301,1781175032000,-433.45811007,0.00016681,2]
[424805309,1781175032000,-490.14,0.00019452,2]
[424805324,1781175032000,-299.19784223,0.00021096,2]
[424805313,1781175032000,-490.14,0.00020548,2]
[424805323,1781175032000,-1663.9880865,0.00021,2]
[424805344,1781175032000,-291.47182078,0.00021521,2]
[424805345,1781175032000,-305.64050962,0.00021521,2]
[424805343,1781175032000,-161.29604498,0.00021521,2]
[424805342,1781175032000,-322.61682043,0.00021521,2]
[424805346,1781175032000,-28.65607114,0.00021521,2]
[424805336,1781175032000,-281.92144115,0.00021293,2]
[424805335,1781175032000,-166.5674121,0.00021293,2]
[424805337,1781175032000,-490.14,0.0002137,2]
[424805334,1781175032000,-928.80487492,0.000212,2]
[424805338,1781175032000,-170.26145585,0.000214,2]
[424805341,1781175032000,-491.46640885,0.00021521,2]
[424805322,1781175032000,-170.26145585,0.00021,2]
[424805332,1781175032000,-170.26145585,0.000212,2]
[424805340,1781175032000,-214.75063331,0.00021518,2]
[424805331,1781175032000,-198.19597571,0.00021198,2]
[424805330,1781175032000,-203.78210657,0.00021198,2]
[424805328,1781175032000,-152.82025481,0.00021198,2]
[424805339,1781175032000,-1663.9880865,0.000214,2]
[424805329,1781175032000,-12.73487014,0.00021198,2]
[424805319,1781175032000,-490.14,0.00020822,2]
[424805333,1781175032000,-735.18321158,0.000212,2]
[424805327,1781175032000,-161.30841021,0.00021198,2]
[424805388,1781175038000,-462.188,0.0002645,2]
[424805389,1781175038000,-151.145,0.0002645,2]
[424805397,1781175038000,-326.01526815,0.00032957,2]
[424805391,1781175038000,-1839.0,0.0002945,2]
[424805406,1781175038000,-891.55967787,0.00034619,7]
[424805393,1781175038000,-549.13009556,0.00030983,2]
[424805399,1781175038000,-456.77188539,0.00034174,2]
[424805401,1781175038000,-891.55967787,0.00034619,7]
[424805404,1781175038000,-891.55967787,0.00034619,7]
[424805383,1781175038000,-3800.68118766,0.00024252,2]
[424805395,1781175038000,-549.677,0.0003245,2]
[424805402,1781175038000,-891.55967787,0.00034619,7]
[424805376,1781175038000,-490.14,0.00021644,2]
[424805379,1781175038000,-490.14,0.00022192,2]
[424805381,1781175038000,-490.24,0.00022466,2]
[424805377,1781175038000,-490.14,0.00021918,2]
[424805367,1781175038000,-396.39195142,0.00021521,2]
[424805369,1781175038000,-263.86164967,0.00021521,2]
[424805363,1781175038000,-133.035664,0.00021521,2]
[424805365,1781175038000,-433.03395342,0.00021521,2]
[424805408,1781175038000,-891.55967787,0.00034619,7]
[424805372,1781175038000,-563.84288229,0.00021618,2]
[424805374,1781175038000,-193.0393316,0.00021618,2]
[424805371,1781175038000,-192.15389134,0.00021618,2]
[424805384,1781175038000,-1839.0,0.0002645,2]
[424805411,1781175038000,-891.55967787,0.00034619,7]
[424805386,1781175038000,-3444.0,0.0002645,2]
[424805422,1781175038000,-891.55967787,0.00034619,7]
[424805410,1781175038000,-891.55967787,0.00034619,7]
[424805457,1781175038000,-984.42528207,0.00034619,7]
[424805456,1781175038000,-984.42528207,0.00034619,7]
[424805454,1781175038000,-984.42528207,0.00034619,7]
[424805452,1781175038000,-946.42488881,0.00034619,7]
[424805450,1781175038000,-946.42488881,0.00034619,7]
[424805448,1781175038000,-946.42488881,0.00034619,7]
[424805439,1781175038000,-946.42488881,0.00034619,7]
[424805443,1781175038000,-946.42488881,0.00034619,7]
[424805446,1781175038000,-946.42488881,0.00034619,7]
[424805434,1781175038000,-946.42488881,0.00034619,7]
[424805438,1781175038000,-946.42488881,0.00034619,7]
[424805444,1781175038000,-946.42488881,0.00034619,7]
[424805436,1781175038000,-946.42488881,0.00034619,7]
[424805441,1781175038000,-946.42488881,0.00034619,7]
[424805413,1781175038000,-891.55967787,0.00034619,7]
[424805420,1781175038000,-891.55967787,0.00034619,7]
[424805424,1781175038000,-891.55967787,0.00034619,7]
[424805415,1781175038000,-891.55967787,0.00034619,7]
[424805417,1781175038000,-891.55967787,0.00034619,7]
[424805425,1781175038000,-891.55967787,0.00034619,7]
[424805432,1781175038000,-946.42488881,0.00034619,7]
[424805429,1781175038000,-891.55967787,0.00034619,7]
[424805431,1781175038000,-891.55967787,0.00034619,7]
[424805418,1781175038000,-891.55967787,0.00034619,7]
[424805427,1781175038000,-891.55967787,0.00034619,7]
[424805475,1781175039000,-341.07532898,0.00035616,18]
[424805481,1781175039000,-500.0,0.00035616,18]
[424805479,1781175039000,-500.0,0.00035616,18]
[424805471,1781175039000,-500.0,0.00035616,18]
[424805461,1781175039000,-156.68806,0.00035082,14]
[424805469,1781175039000,-1191.5145,0.00035616,18]
[424805463,1781175039000,-4034.91448128,0.00035089,2]
[424805467,1781175039000,-22562.546901,0.00035355,2]
[424805477,1781175039000,-500.0,0.00035616,18]
[424805459,1781175039000,-984.42528207,0.00034619,7]
[424805472,1781175039000,-158.92467102,0.00035616,18]
[424805465,1781175039000,-212.1037079,0.00035355,2]
[424805483,1781175039000,-500.0,0.00035616,18]
[424805488,1781175039000,-346.62521876,0.00035616,18]
[424805485,1781175039000,-500.0,0.00035616,18]
[424805509,1781175039000,-373.0662726,0.00035616,18]
[424805503,1781175039000,-500.0,0.00035616,18]
[424805505,1781175039000,-500.0,0.00035616,18]
[424805507,1781175039000,-206.29845478,0.00035616,18]
[424805501,1781175039000,-500.0,0.00035616,18]
[424805486,1781175039000,-153.37478124,0.00035616,18]
[424805497,1781175039000,-500.0,0.00035616,18]
[424805492,1781175039000,-500.0,0.00035616,18]
[424805494,1781175039000,-1000.0,0.00035616,2]
[424805495,1781175039000,-500.0,0.00035616,18]
[424805499,1781175039000,-168.13962375,0.00035616,18]
[424805490,1781175039000,-500.0,0.00035616,18]
[424805750,1781175041000,-19.49695703,0.00035616,18]
[424805746,1781175041000,-13.71527262,0.00035616,18]
[424805744,1781175041000,-5000.0,0.00021306,2]
[424805748,1781175041000,-500.0,0.00035616,18]
[424805754,1781175041000,-480.50304297,0.00035616,18]
[424805766,1781175041000,-500.0,0.00035616,18]
[424805764,1781175041000,-500.0,0.00035616,18]
[424805768,1781175041000,-500.0,0.00035616,18]
[424805769,1781175041000,-1684.33,0.00035616,2]
[424805760,1781175041000,-500.0,0.00035616,18]
[424805762,1781175041000,-500.0,0.00035616,18]
[424805771,1781175041000,-868.31,0.00035616,18]
[424805758,1781175041000,-829.45,0.00035616,18]
[424805773,1781175041000,-37.59040397,0.00035616,18]
[424805756,1781175041000,-500.0,0.00035616,18]
[424806338,1781175046000,-462.40959603,0.00035616,18]
[424806370,1781175046000,-12859.48680107,0.00021618,2]
[424806348,1781175046000,-500.0,0.00035616,18]
[424806346,1781175046000,-500.0,0.00035616,18]
[424806350,1781175046000,-500.0,0.00035616,18]
[424806342,1781175046000,-500.0,0.00035616,18]
[424806344,1781175046000,-500.0,0.00035616,18]
[424806340,1781175046000,-500.0,0.00035616,18]
[424806352,1781175046000,-33.90093393,0.00035616,18]
[424807182,1781175237000,4686.98254502,0.00024658,30]
[424807183,1781175252000,5000.0,0.00024658,30]
[424807185,1781175455000,1000.0,7.6e-05,2]
[424807186,1781175455000,1000.0,7.6e-05,2]
[424807190,1781175455000,267236.67924567,7.6e-05,2]
[424807189,1781175455000,1000.0,7.6e-05,2]
[424807188,1781175455000,1000.0,7.6e-05,2]
[424807187,1781175455000,1000.0,7.6e-05,2]
[424807235,1781176232000,-1052.0,9.51e-05,2]
[424807284,1781176240000,-905.06142707,0.00011499,2]
[424807286,1781176240000,-905.06142707,0.00011499,2]
[424807282,1781176240000,-905.06142707,0.00011499,2]
[424807278,1781176240000,-905.06142707,0.00011499,2]
[424807276,1781176240000,-2002.9636787,0.00011399,2]
[424807283,1781176240000,-905.06142707,0.00011499,2]
[424807280,1781176240000,-905.06142707,0.00011499,2]
[424807281,1781176240000,-905.06142707,0.00011499,2]
[424807275,1781176240000,-500.0,0.00011398,2]
[424807273,1781176240000,-500.0,0.00011398,2]
[424807271,1781176240000,-9315.40192182,0.0001,2]
[424807269,1781176240000,-3320.43943301,0.0001,2]
[424807270,1781176240000,-329.05554781,0.0001,2]
[424807268,1781176240000,-3636.55827228,9.415e-05,2]
[424807267,1781176240000,-1363.44172772,9.415e-05,2]
[424807288,1781176240000,-905.06142707,0.00011499,2]
[424807299,1781176240000,-960.75751489,0.00011499,2]
[424807279,1781176240000,-905.06142707,0.00011499,2]
[424807300,1781176240000,-960.75751489,0.00011499,2]
[424807301,1781176240000,-960.75751489,0.00011499,2]
[424807323,1781176240000,-4606.7222871,0.00013,2]
[424807314,1781176240000,-200.0,0.0001159,2]
[424807318,1781176240000,-18130.77930112,0.000125,2]
[424807320,1781176240000,-17901.34222118,0.00013,2]
[424807316,1781176240000,-9877.47107985,0.000125,2]
[424807308,1781176240000,-962.21320811,0.00011499,2]
[424807312,1781176240000,-46806.83128875,0.000115,2]
[424807310,1781176240000,-962.21320811,0.00011499,2]
[424807277,1781176240000,-905.06142707,0.00011499,2]
[424807295,1781176240000,-960.75751489,0.00011499,2]
[424807291,1781176240000,-905.06142707,0.00011499,2]
[424807306,1781176240000,-962.21320811,0.00011499,2]
[424807304,1781176240000,-962.21320811,0.00011499,2]
[424807297,1781176240000,-960.75751489,0.00011499,2]
[424807290,1781176240000,-905.06142707,0.00011499,2]
[424807293,1781176240000,-960.75751489,0.00011499,2]
[424807302,1781176240000,-960.75751489,0.00011499,2]
[424808044,1781176246000,-700.0,0.00013,2]
[424808260,1781176521000,15081.2,0.00024657,30]
[424808261,1781176752000,-521.73353126,9.606e-05,2]
[424808267,1781177112000,183.77,5e-05,2]
[424808324,1781177431000,-5000.0,8.601e-05,2]
[424808328,1781177431000,-1465.82277181,8.688e-05,2]
[424808326,1781177431000,-3534.17722819,8.688e-05,2]
[424808330,1781177432000,-20.11505192,8.776e-05,2]
[424808392,1781177438000,-369.00482754,8.688e-05,2]
[424808711,1781177440000,-81.87725583,0.00012899,2]
[424808699,1781177440000,-1731.06013966,0.0001,2]
[424808693,1781177440000,-1925.4916412,8.688e-05,2]
[424808696,1781177440000,-1089.94090667,8.776e-05,2]
[424808704,1781177440000,-171.54805984,0.0001,2]
[424808936,1781177443000,-8755.80620917,0.00013,2]
[424808935,1781177443000,-1723.36315275,0.00012899,2]
[424809295,1781177446000,-288.87684538,0.00013,2]
[424809281,1781177446000,-8337.76874504,0.00013,2]
[424814792,1781177678000,-3496.31052996,0.00012741,2]
[424814793,1781177690000,-1503.68947004,0.00012741,2]
[424814797,1781177822000,700000.0,0.0002465,30]
[424814862,1781178632000,-1678.99759425,0.00011221,2]
[424814859,1781178632000,-1062.23899998,0.00011109,2]
[424814860,1781178632000,-305.4205048,0.00011109,2]
[424814856,1781178632000,-521.73353126,0.00010998,2]
[424814857,1781178632000,-693.34742376,0.00011109,2]
[424814858,1781178632000,-1885.49935926,0.00011109,2]
[424814861,1781178632000,-1053.4937122,0.00011109,2]
[424814873,1781178638000,-2444.3446219,0.00011221,2]
[424814875,1781178638000,-152.0,0.00011677,2]
[424814874,1781178638000,-1303.69252165,0.00011221,2]
[424814876,1781178638000,-500.0,0.00012998,2]
[424814877,1781178638000,-365.51492437,0.00012998,2]
[424814878,1781178638000,-1482.61,0.00012999,2]
[424814881,1781178638000,-835.27108176,0.00012999,2]
[424814882,1781178638000,-835.27108176,0.00012999,2]
[424814879,1781178638000,-835.27108176,0.00012999,2]
[424814889,1781178638000,-835.27108176,0.00012999,2]
[424814887,1781178638000,-835.27108176,0.00012999,2]
[424814883,1781178638000,-835.27108176,0.00012999,2]
[424814885,1781178638000,-835.27108176,0.00012999,2]
[424814886,1781178638000,-835.27108176,0.00012999,2]
[424814888,1781178638000,-835.27108176,0.00012999,2]
[424814884,1781178638000,-835.27108176,0.00012999,2]
[424814890,1781178638000,-835.27108176,0.00012999,2]
[424814891,1781178638000,-324.62804099,0.00012999,2]
[424814880,1781178638000,-835.27108176,0.00012999,2]
[424814964,1781178643000,-0.00339489,0.00012999,2]
[424815017,1781178646000,-480.340348,0.00017,2]
[424815015,1781178646000,-480.340348,0.00017,2]
[424815027,1781178646000,-333.1348242,0.00021618,2]
[424815020,1781178646000,-423.08196266,0.00020545,2]
[424815021,1781178646000,-5427.0347378,0.00020946,2]
[424815013,1781178646000,-6941.98760978,0.00017,2]
[424815023,1781178646000,-480.340348,0.00020946,2]
[424815025,1781178646000,-480.340348,0.00020946,2]
[424815016,1781178646000,-480.340348,0.00017,2]
[424815022,1781178646000,-480.340348,0.00020946,2]
[424815019,1781178646000,-2024.0,0.00019,2]
[424815029,1781178646000,-480.340348,0.00021645,2]
[424815033,1781178646000,-244.61474475,0.00021716,2]
[424815030,1781178646000,-480.340348,0.00021645,2]
[424815024,1781178646000,-480.340348,0.00020946,2]
[424815018,1781178646000,-201.03236367,0.00018,2]
[424815014,1781178646000,-480.340348,0.00017,2]
[424815000,1781178646000,-835.27108176,0.00012999,2]
[424815010,1781178646000,-480.340348,0.00016438,2]
[424814995,1781178646000,-5000.0,0.00012869,2]
[424814998,1781178646000,-835.27108176,0.00012999,2]
[424814996,1781178646000,-510.63964588,0.00012999,2]
[424814999,1781178646000,-835.27108176,0.00012999,2]
[424814997,1781178646000,-835.27108176,0.00012999,2]
[424815001,1781178646000,-47983.3227401,0.00013,2]
[424815006,1781178646000,-5427.0347378,0.00016083,2]
[424815007,1781178646000,-272.55,0.00016438,2]
[424815002,1781178646000,-363.2423016,0.00013699,2]
[424815004,1781178646000,-3302.260071,0.00015,2]
[424815008,1781178646000,-480.340348,0.00016438,2]
[424815003,1781178646000,-360.88,0.00014042,2]
[424815011,1781178646000,-480.340348,0.00016438,2]
[424815009,1781178646000,-480.340348,0.00016438,2]
[424815012,1781178646000,-23488.2924992,0.00017,2]
[424815005,1781178646000,-189.693871,0.00015068,2]
[424815034,1781178646000,-186.0,0.00023782,2]
[424815043,1781178646000,-480.340348,0.00026,2]
[424815032,1781178646000,-480.340348,0.00021645,2]
[424815052,1781178646000,-1579.58535749,0.00032185,2]
[424815053,1781178646000,-186.0,0.00032782,2]
[424815054,1781178646000,-151.0,0.000346,14]
[424815056,1781178646000,-152.0,0.00034743,7]
[424815059,1781178646000,-10000.0,0.00035,30]
[424815058,1781178646000,-152.0,0.00034872,7]
[424815061,1781178646000,-152.09343281,0.00035616,18]
[424815057,1781178646000,-152.0,0.00034813,7]
[424815060,1781178646000,-1050.964,0.00035616,18]
[424815063,1781178646000,-500.0,0.00035616,18]
[424815062,1781178646000,-500.0,0.00035616,18]
[424815064,1781178646000,-500.0,0.00035616,18]
[424815066,1781178646000,-500.0,0.00035616,18]
[424815067,1781178646000,-500.0,0.00035616,18]
[424815031,1781178646000,-480.340348,0.00021645,2]
[424815055,1781178646000,-152.0,0.00034743,7]
[424815051,1781178646000,-186.0,0.00029782,2]
[424815065,1781178646000,-500.0,0.00035616,18]
[424815046,1781178646000,-186.0,0.00026782,2]
[424815050,1781178646000,-327229.42238259,0.00028042,2]
[424815036,1781178646000,-230.0,0.0002453,2]
[424815026,1781178646000,-400.0,0.00021198,2]
[424815048,1781178646000,-168.80219915,0.00027397,30]
[424815038,1781178646000,-200.0,0.00025,2]
[424815049,1781178646000,-533789.30336093,0.00028042,2]
[424815037,1781178646000,-152.0,0.00024697,30]
[424815035,1781178646000,-400.0,0.0002453,2]
[424815042,1781178646000,-480.340348,0.00026,2]
[424815047,1781178646000,-847.5653704,0.00027397,2]
[424815039,1781178646000,-5427.0347378,0.00025808,2]
[424815045,1781178646000,-480.340342,0.00026,2]
[424815028,1781178646000,-187197.23222134,0.00021645,2]
[424815040,1781178646000,-41984.72495,0.00026,30]
[424815044,1781178646000,-480.340348,0.00026,2]
[424815041,1781178646000,-691.43988588,0.00026,30]
[424815114,1781178647000,-500.0,0.00035616,18]
[424815124,1781178647000,-500.0,0.00035616,18]
[424815108,1781178647000,-500.0,0.00035616,18]
[424815107,1781178647000,-500.0,0.00035616,18]
[424815105,1781178647000,-500.0,0.00035616,18]
[424815103,1781178647000,-500.0,0.00035616,18]
[424815102,1781178647000,-500.0,0.00035616,18]
[424815106,1781178647000,-500.0,0.00035616,18]
[424815100,1781178647000,-500.0,0.00035616,18]
[424815111,1781178647000,-500.0,0.00035616,18]
[424815112,1781178647000,-500.0,0.00035616,18]
[424815113,1781178647000,-500.0,0.00035616,18]
[424815110,1781178647000,-500.0,0.00035616,18]
[424815104,1781178647000,-500.0,0.00035616,18]
[424815120,1781178647000,-500.0,0.00035616,18]
[424815119,1781178647000,-500.0,0.00035616,18]
[424815118,1781178647000,-954.27,0.00035616,18]
[424815117,1781178647000,-500.0,0.00035616,18]
[424815122,1781178647000,-500.0,0.00035616,18]
[424815121,1781178647000,-500.0,0.00035616,18]
[424815123,1781178647000,-500.0,0.00035616,18]
[424815115,1781178647000,-500.0,0.00035616,18]
[424815116,1781178647000,-661.46,0.00035616,18]
[424815126,1781178647000,-500.0,0.00035616,18]
[424815127,1781178647000,-500.0,0.00035616,18]
[424815129,1781178647000,-500.0,0.00035616,18]
[424815131,1781178647000,-580.03,0.00035616,18]
[424815109,1781178647000,-500.0,0.00035616,18]
[424815125,1781178647000,-500.0,0.00035616,18]
[424815101,1781178647000,-1251.28,0.00035616,18]
[424815084,1781178647000,-500.0,0.00035616,18]
[424815094,1781178647000,-500.0,0.00035616,18]
[424815073,1781178647000,-1644.74,0.00035616,2]
[424815069,1781178647000,-500.0,0.00035616,18]
[424815068,1781178647000,-500.0,0.00035616,18]
[424815072,1781178647000,-1000.0,0.00035616,2]
[424815070,1781178647000,-511.0029763,0.00035616,18]
[424815071,1781178647000,-500.0,0.00035616,18]
[424815074,1781178647000,-500.0,0.00035616,18]
[424815077,1781178647000,-500.0,0.00035616,18]
[424815076,1781178647000,-500.0,0.00035616,18]
[424815078,1781178647000,-568.37,0.00035616,18]